bitfinex/quotes_SOLUSD_20250420
["timestamp","ask_amount","ask_price","bid_price","bid_amount"]
[1745139048356,82.4,139.2,139.18,7.72258104]
[1745139050557,82.4,139.2,139.17,7.72258104]
[1745139052189,89.58398901,139.2,139.15,21.98258104]
[1745139052395,97.30657005,139.2,139.15,21.98258104]
[1745139054201,97.30657005,139.2,139.15,14.26]
[1745139054387,7.72258104,139.18,139.15,14.26]
[1745139056202,14.90743907,139.19,139.15,14.26]
[1745139056498,7.72258104,139.18,139.15,14.26]
[1745139056796,90.12258104,139.18,139.15,14.26]
[1745139056999,82.4,139.17,139.15,14.26]
[1745139058696,89.58548032,139.17,139.15,14.26]
[1745139059481,82.4,139.16,139.15,14.26]
[1745139059909,7.72258104,139.16,139.15,14.26]
[1745139060081,14.90855402,139.16,139.15,14.26]
[1745139063290,14.90855402,139.16,139.11,14.9]
[1745139063487,7.72258104,139.13,139.11,14.9]
[1745139063709,90.12258104,139.12,139.11,14.9]
[1745139063916,82.4,139.12,139.11,14.9]
[1745139064223,82.4,139.12,139.11,22.62258104]
[1745139066798,82.4,139.12,139.11,14.9]
[1745139068202,90.12258104,139.12,139.11,14.9]
[1745139068787,7.72258104,139.12,139.11,14.9]
[1745139068991,14.91062014,139.12,139.11,14.9]
[1745139075477,40.91062014,139.12,139.11,14.9]
[1745139075874,42.56702014,139.12,139.11,14.9]
[1745139076901,104.306669,139.12,139.11,14.9]
[1745139077396,26.0,139.1,139.09,0.03]
[1745139077602,33.72258104,139.1,139.09,0.03]
[1745139078391,40.91165364,139.1,139.09,0.03]
[1745139079683,33.1890726,139.1,139.09,0.03]
[1745139079890,40.91165364,139.1,139.09,0.03]
[1745139083480,33.72258104,139.1,139.09,0.03]
[1745139084393,40.91165364,139.1,139.09,0.03]
[1745139094879,102.6513025,139.1,139.09,0.03]
[1745139096578,84.00165364,139.1,139.09,0.03]
[1745139098895,33.72258104,139.1,139.09,0.03]
[1745139100908,40.91165364,139.1,139.09,0.03]
[1745139101896,26.0,139.1,139.09,0.03]
[1745139102097,33.72258104,139.1,139.09,0.03]
[1745139102402,40.91165364,139.1,139.09,0.03]
[1745139107701,84.00165364,139.1,139.09,0.03]
[1745139109990,26.0,139.1,139.09,0.03]
[1745139110192,33.72258104,139.1,139.09,0.03]
[1745139112417,26.0,139.1,139.09,0.03]
[1745139112992,33.72258104,139.1,139.09,0.03]
[1745139113201,26.0,139.1,139.09,0.03]
[1745139113391,33.72258104,139.1,139.09,0.03]
[1745139115512,26.0,139.1,139.09,0.03]
[1745139115712,82.4,139.11,139.09,0.03]
[1745139119916,90.12258104,139.11,139.09,0.03]
[1745139120216,82.4,139.11,139.09,0.03]
[1745139120397,90.12258104,139.11,139.09,0.03]
[1745139120903,82.4,139.11,139.09,0.03]
[1745139121723,90.12258104,139.13,139.09,0.03]
[1745139122418,82.4,139.13,139.09,0.03]
[1745139122599,90.12258104,139.13,139.09,0.03]
[1745139123314,7.72258104,139.12,139.09,0.03]
[1745139124922,90.12258104,139.13,139.09,0.03]
[1745139129225,7.72258104,139.12,139.09,0.03]
[1745139129828,90.12258104,139.13,139.09,0.03]
[1745139131833,82.4,139.13,139.09,0.03]
[1745139132033,90.12258104,139.13,139.09,0.03]
[1745139135933,90.12258104,139.13,139.1,14.82]
[1745139138931,82.4,139.17,139.12,7.72258104]
[1745139139139,7.72258104,139.17,139.12,7.72258104]
[1745139139520,33.72258104,139.17,139.12,7.72258104]
[1745139139723,7.72258104,139.17,139.12,7.72258104]
[1745139142229,33.72258104,139.16,139.11,7.72258104]
[1745139142839,26.0,139.16,139.11,7.72258104]
[1745139143945,90.12258104,139.17,139.11,7.72258104]
[1745139144122,82.4,139.17,139.13,7.72258104]
[1745139145835,90.12258104,139.17,139.12,7.72258104]
[1745139146037,7.72258104,139.16,139.11,26.3722299]
[1745139146348,7.72258104,139.14,139.1,14.82]
[1745139146728,7.72258104,139.15,139.1,14.82]
[1745139146931,7.72258104,139.15,139.1,22.54258104]
[1745139147751,7.72258104,139.16,139.1,22.54258104]
[1745139148324,7.72258104,139.16,139.11,7.72258104]
[1745139150550,7.72258104,139.16,139.1,22.54258104]
[1745139151552,7.72258104,139.16,139.11,7.72258104]
[1745139155956,14.90258104,139.16,139.11,7.72258104]
[1745139156257,7.72258104,139.16,139.11,7.72258104]
[1745139157942,7.72258104,139.16,139.1,22.54258104]
[1745139158148,7.72258104,139.15,139.1,22.54258104]
[1745139159455,7.72258104,139.16,139.11,7.72258104]
[1745139161363,7.72258104,139.16,139.12,14.58]
[1745139163269,90.12258104,139.17,139.12,14.58]
[1745139166063,7.18,139.16,139.12,14.58]
[1745139166268,90.12258104,139.17,139.12,14.58]
[1745139167673,7.72258104,139.16,139.12,14.58]
[1745139168273,7.72258104,139.15,139.12,14.58]
[1745139170073,7.72258104,139.16,139.12,14.58]
[1745139170573,7.72258104,139.14,139.12,14.58]
[1745139171274,7.72258104,139.13,139.12,14.58]
[1745139172958,16.4956035,139.13,139.12,14.58]
[1745139174270,9.30808104,139.13,139.12,14.58]
[1745139174577,16.4956035,139.13,139.12,14.58]
[1745139175461,9.30808104,139.13,139.12,14.58]
[1745139185408,7.72258104,139.13,139.12,14.58]
[1745139185907,82.4,139.14,139.12,14.58]
[1745139186108,7.72258104,139.13,139.12,14.58]
[1745139194894,82.4,139.14,139.12,14.58]
[1745139195392,33.18551181,139.17,139.12,14.58]
[1745139195593,7.72258104,139.15,139.12,14.58]
[1745139196795,7.72258104,139.14,139.12,14.58]
[1745139199893,7.72258104,139.15,139.12,14.58]
[1745139201382,7.72258104,139.16,139.12,14.58]
[1745139202585,41.34310805,139.19,139.12,22.30258104]
[1745139202783,7.72258104,139.17,139.12,22.30258104]
[1745139203203,34.1585,139.19,139.12,22.30258104]
[1745139203382,7.72258104,139.17,139.12,22.30258104]
[1745139205311,7.72258104,139.17,139.12,14.58]
[1745139205497,7.72258104,139.17,139.12,22.30258104]
[1745139207919,7.72258104,139.18,139.13,7.72258104]
[1745139208099,7.72258104,139.17,139.12,22.30258104]
[1745139208412,35.24038104,139.19,139.14,7.72258104]
[1745139209213,7.72258104,139.18,139.13,7.72258104]
[1745139210210,9.24038104,139.19,139.14,7.72258104]
[1745139211008,7.72258104,139.18,139.13,26.3722299]
[1745139211518,7.72258104,139.16,139.12,14.58]
[1745139211716,7.72258104,139.15,139.12,14.58]
[1745139213210,26.0,139.15,139.12,14.58]
[1745139213415,7.72258104,139.16,139.12,14.58]
[1745139216522,26.0,139.17,139.12,14.58]
[1745139216523,7.72258104,139.15,139.12,14.58]
[1745139216893,7.72258104,139.14,139.12,14.58]
[1745139217299,7.72258104,139.13,139.12,14.58]
[1745139217498,7.72258104,139.14,139.12,14.58]
[1745139218817,7.72258104,139.13,139.12,14.58]
[1745139226623,1.5741,139.14,139.12,14.58]
[1745139226834,82.4,139.15,139.12,14.58]
[1745139227018,7.72258104,139.14,139.12,14.58]
[1745139227220,7.72258104,139.13,139.12,14.58]
[1745139232823,14.9101035,139.13,139.12,14.58]
[1745139233929,7.72258104,139.13,139.12,14.58]
[1745139248649,82.4,139.14,139.12,14.58]
[1745139248843,7.72258104,139.13,139.12,14.58]
[1745139249149,82.4,139.14,139.12,14.58]
[1745139249448,7.72258104,139.13,139.12,14.58]
[1745139253850,82.4,139.14,139.12,14.58]
[1745139253851,7.72258104,139.14,139.12,14.58]
[1745139258337,108.4,139.17,139.12,14.58]
[1745139258338,7.72258104,139.15,139.12,14.58]
[1745139258930,108.4,139.17,139.12,14.58]
[1745139259131,7.72258104,139.14,139.12,14.58]
[1745139260244,7.72258104,139.15,139.12,14.58]
[1745139261337,7.72258104,139.16,139.12,14.58]
[1745139264638,108.4,139.17,139.12,14.58]
[1745139264639,7.72258104,139.17,139.12,14.58]
[1745139264956,7.72258104,139.17,139.12,22.30258104]
[1745139265367,82.4,139.2,139.13,26.3722299]
[1745139265539,7.72258104,139.18,139.13,26.3722299]
[1745139266155,7.72258104,139.18,139.13,18.64964886]
[1745139267562,7.72258104,139.16,139.12,14.58]
[1745139268250,7.72258104,139.17,139.12,14.58]
[1745139269278,7.72258104,139.16,139.12,14.58]
[1745139270157,7.72258104,139.17,139.12,22.30258104]
[1745139272850,7.72258104,139.18,139.13,18.64964886]
[1745139276375,7.72258104,139.16,139.12,14.58]
[1745139276767,7.72258104,139.17,139.12,14.58]
[1745139280579,7.72258104,139.16,139.12,14.58]
[1745139283170,7.72258104,139.17,139.12,22.30258104]
[1745139285181,7.72258104,139.16,139.12,14.58]
[1745139286882,7.72258104,139.15,139.12,14.58]
[1745139287089,7.18499963,139.18,139.12,14.58]
[1745139287090,7.72258104,139.16,139.12,14.58]
[1745139288972,8.75399963,139.18,139.12,14.58]
[1745139288973,7.72258104,139.15,139.12,14.58]
[1745139289180,7.10449104,139.15,139.12,14.58]
[1745139292982,7.18569777,139.17,139.12,14.58]
[1745139293184,7.72258104,139.15,139.12,14.58]
[1745139293365,7.18569777,139.17,139.12,14.58]
[1745139293677,7.72258104,139.13,139.12,14.58]
[1745139294291,7.72258104,139.14,139.12,14.58]
[1745139294869,7.72258104,139.15,139.12,14.58]
[1745139297393,7.72258104,139.14,139.12,14.58]
[1745139300099,7.72258104,139.15,139.12,14.58]
[1745139300278,7.72258104,139.16,139.12,14.58]
[1745139302721,7.72258104,139.17,139.12,22.30258104]
[1745139304397,7.72258104,139.16,139.12,14.58]
[1745139307491,1.569,139.18,139.12,14.58]
[1745139307692,7.72258104,139.16,139.12,14.58]
[1745139309907,7.72258104,139.17,139.12,22.30258104]
[1745139310301,7.72258104,139.17,139.13,18.64964886]
[1745139310608,82.4,139.19,139.13,26.3722299]
[1745139310793,7.72258104,139.19,139.13,26.3722299]
[1745139310994,7.72258104,139.2,139.15,18.64964886]
[1745139311807,7.72258104,139.2,139.15,7.72258104]
[1745139312006,0.063,139.21,139.15,7.72258104]
[1745139312185,7.72258104,139.2,139.15,7.72258104]
[1745139312387,0.063,139.21,139.17,18.64964886]
[1745139312585,0.063,139.21,139.18,14.3]
[1745139313223,7.78558104,139.21,139.18,14.3]
[1745139315211,0.063,139.21,139.18,14.3]
[1745139316203,7.78558104,139.21,139.18,14.3]
[1745139319216,0.063,139.21,139.18,14.3]
[1745139320410,7.72258104,139.19,139.18,14.3]
[1745139326814,14.9070052,139.19,139.18,14.3]
[1745139327119,22.9595052,139.19,139.18,14.3]
[1745139329211,48.9595052,139.19,139.18,14.3]
[1745139330911,22.9595052,139.19,139.18,14.3]
[1745139331231,26.0,139.15,139.14,14.3]
[1745139331426,33.72258104,139.15,139.14,14.3]
[1745139336131,7.72258104,139.15,139.14,14.3]
[1745139340528,7.72258104,139.15,139.09,7.75258104]
[1745139340733,7.72258104,139.15,138.9,0.050736]
[1745139340734,1.0,138.93,138.9,0.050736]
[1745139340946,26.0,138.89,138.8,14.3721]
[1745139341120,26.0,138.89,138.8,22.09468104]
[1745139341429,33.72258104,138.89,138.87,14.3]
[1745139341630,40.92252344,138.89,138.87,14.3]
[1745139341926,40.92252344,138.89,138.8,7.79468104]
[1745139342127,40.92252344,138.89,138.88,171.83235986]
[1745139342328,40.92252344,138.89,138.8,0.0721]
[1745139342329,40.92252344,138.89,138.86,14.3]
[1745139342513,7.72258104,138.87,138.86,14.3]
[1745139343116,12.1546617,138.87,138.86,14.3]
[1745139343316,51.2082136,138.86,138.8,4.17420399]
[1745139343522,51.2082136,138.86,138.81,26.4746617]
[1745139343943,14.29901051,138.86,138.81,26.4746617]
[1745139344946,14.29901051,138.86,138.82,12.1546617]
[1745139345132,14.29901051,138.86,138.83,14.32]
[1745139345623,14.29901051,138.86,138.85,12.1546617]
[1745139346958,14.29901051,138.86,138.84,272.8946617]
[1745139347328,14.29901051,138.86,138.84,260.74]
[1745139347553,14.29901051,138.86,138.84,272.8946617]
[1745139348154,14.29901051,138.86,138.84,260.74]
[1745139348455,14.29901051,138.86,138.85,14.32]
[1745139349156,1.0,138.87,138.85,14.32]
[1745139349537,1.0,138.86,138.85,14.32]
[1745139350134,15.29901052,138.86,138.85,14.32]
[1745139350956,1.0,138.85,138.84,246.42]
[1745139351131,1.0,138.85,138.84,260.74]
[1745139351531,13.1546617,138.85,138.84,260.74]
[1745139352127,1.0,138.85,138.84,260.74]
[1745139353157,1.0,138.61,138.53,14.3]
[1745139353357,39.1546617,138.54,138.53,5.65557919]
[1745139353535,1.0,138.53,138.45,12.1546617]
[1745139353859,38.1546617,138.54,138.34,3.61868123]
[1745139353860,1.0,138.52,138.34,3.61868123]
[1745139354031,1.0,138.52,138.45,12.1546617]
[1745139354235,1.0,138.52,138.4,12.1546617]
[1745139354572,1.0,138.52,138.49,12.1546617]
[1745139354730,1.0,138.52,138.4,12.1546617]
[1745139354925,1.0,138.52,138.48,12.1546617]
[1745139355230,1.0,138.52,138.5,19.53390637]
[1745139355448,1.0,138.52,138.51,16.04]
[1745139356250,1.0,138.51,138.47,246.66]
[1745139356559,1.0,138.49,138.48,16.04]
[1745139356727,26.0,138.52,138.48,16.04]
[1745139356728,26.0,138.52,138.48,35.57390637]
[1745139356931,1.0,138.49,138.48,35.57390637]
[1745139357441,27.0,138.52,138.48,35.57390637]
[1745139357642,26.0,138.52,138.4,20.0]
[1745139357956,1.0,138.51,138.5,19.53390637]
[1745139358149,1.0,138.51,138.48,19.53390637]
[1745139358453,1.0,138.5,138.48,19.53390637]
[1745139358628,1.0,138.5,138.4,39.53390637]
[1745139358629,1.0,138.5,138.46,19.53390637]
[1745139358830,1.0,138.5,138.4,39.53390637]
[1745139359059,1.0,138.5,138.46,19.53390637]
[1745139359264,1.0,138.5,138.43,26.0]
[1745139359562,1.0,138.5,138.46,19.53390637]
[1745139359732,1.0,138.5,138.48,19.53390637]
[1745139359933,1.0,138.49,138.42,44.64964886]
[1745139360243,1.0,138.51,138.42,44.64964886]
[1745139360448,1.0,138.49,138.48,19.53390637]
[1745139360857,1.0,138.48,138.42,26.0]
[1745139361037,1.0,138.48,138.47,19.53390637]
[1745139361233,1.0,138.49,138.47,19.53390637]
[1745139361434,1.0,138.49,138.48,19.53390637]
[1745139361639,1.0,138.5,138.48,19.53390637]
[1745139361864,1.0,138.48,138.42,26.0]
[1745139362072,1.0,138.47,138.39,18.64964886]
[1745139362274,1.0,138.48,138.46,19.53390637]
[1745139362561,1.0,138.49,138.47,19.53390637]
[1745139362878,1.0,138.49,138.48,19.53390637]
[1745139363370,1.0,138.5,138.48,19.53390637]
[1745139363667,1.0,138.5,138.49,19.53390637]
[1745139364780,1.0,138.5,138.42,26.0]
[1745139364953,27.0,138.53,138.49,19.53390637]
[1745139365152,1.0,138.5,138.48,247.2]
[1745139365467,1.0,138.55,138.49,16.06]
[1745139365661,1.0,138.52,138.49,16.06]
[1745139365837,1.0,138.5,138.49,16.06]
[1745139366341,14.29901052,138.49,138.48,266.73390637]
[1745139366564,14.29901052,138.49,138.48,282.79390637]
[1745139369788,1.0,138.51,138.48,263.26]
[1745139369955,1.0,138.52,138.5,19.53390637]
[1745139370156,1.0,138.52,138.51,19.53390637]
[1745139370564,1.0,138.52,138.48,263.26]
[1745139370780,1.0,138.51,138.49,19.53390637]
[1745139372379,1.0,138.52,138.49,19.53390637]
[1745139372685,1.0,138.51,138.49,19.53390637]
[1745139373382,1.0,138.54,138.49,19.53390637]
[1745139373574,1.0,138.53,138.51,19.53390637]
[1745139374576,1.0,138.53,138.5,19.53390637]
[1745139375460,1.0,138.54,138.5,19.53390637]
[1745139375661,18.64964886,138.55,138.5,19.53390637]
[1745139375662,1.0,138.53,138.5,19.53390637]
[1745139376383,1.0,138.53,138.46,20.51312015]
[1745139376559,1.0,138.51,138.49,247.32]
[1745139376755,1.0,138.51,138.5,35.61390637]
[1745139377998,1.0,138.51,138.5,16.08]
[1745139378201,1.0,138.51,138.5,35.61390637]
[1745139379187,1.0,138.53,138.5,35.61390637]
[1745139379355,1.0,138.51,138.5,16.08]
[1745139380091,1.0,138.55,138.5,16.08]
[1745139380384,1.0,138.54,138.5,16.08]
[1745139380560,1.0,138.55,138.51,19.53390637]
[1745139380762,1.0,138.54,138.51,19.53390637]
[1745139380960,1.0,138.54,138.5,16.08]
[1745139381182,21.55,138.55,138.51,12.20838192]
[1745139381183,22.55,138.55,138.51,12.20838192]
[1745139381369,1.0,138.54,138.51,12.20838192]
[1745139382302,1.0,138.54,138.52,16.08]
[1745139382677,21.55,138.55,138.52,16.08]
[1745139383097,1.0,138.54,138.53,12.20838192]
[1745139383292,1.0,138.54,138.52,28.28838192]
[1745139384005,1.0,138.54,138.52,12.20838192]
[1745139384310,1.0,138.54,138.53,15.9]
[1745139385801,18.64964886,138.55,138.53,15.9]
[1745139386008,1.0,138.54,138.53,15.9]
[1745139390207,1.0,138.55,138.53,15.9]
[1745139390413,1.0,138.54,138.53,15.9]
[1745139392119,1.0,138.52,138.51,12.20838192]
[1745139392412,1.0,138.52,138.51,28.10838192]
[1745139394718,1.0,138.52,138.51,15.9]
[1745139396015,27.0,138.52,138.49,247.32]
[1745139396318,1.0,138.5,138.49,247.32]
[1745139396500,1.0,138.5,138.49,275.42838192]
[1745139396812,1.0,138.52,138.49,275.42838192]
[1745139397023,1.0,138.51,138.5,12.20838192]
[1745139397723,1.0,138.52,138.5,12.20838192]
[1745139398017,1.0,138.51,138.5,12.20838192]
[1745139398397,43.1,138.55,138.5,12.20838192]
[1745139399809,55.30838192,138.55,138.49,275.42838192]
[1745139400125,30.85803078,138.54,138.49,275.42838192]
[1745139401118,30.85803078,138.54,138.49,263.22]
[1745139403133,37.40273078,138.54,138.49,263.22]
[1745139403517,12.20838192,138.53,138.49,263.22]
[1745139403725,12.20838192,138.53,138.49,247.32]
[1745139403914,12.20838192,138.53,138.5,15.9]
[1745139404223,37.40273078,138.54,138.5,15.9]
[1745139404617,58.95273078,138.54,138.5,15.9]
[1745139404804,46.74434886,138.54,138.5,15.9]
[1745139405010,58.95273078,138.54,138.5,15.9]
[1745139405230,26.0,138.53,138.5,15.9]
[1745139406518,40.19964886,138.52,138.5,15.9]
[1745139408449,18.64964886,138.52,138.5,15.9]
[1745139408822,44.6207,138.53,138.5,15.9]
[1745139410022,40.19964886,138.52,138.5,15.9]
[1745139411433,18.64964886,138.52,138.5,15.9]
[1745139411744,26.0,138.52,138.51,15.9]
[1745139414812,51.19434886,138.54,138.51,15.9]
[1745139417634,51.19434886,138.54,138.52,15.6]
[1745139418433,26.0,138.54,138.52,15.6]
[1745139420548,108.86514321,138.56,138.52,15.6]
[1745139420728,18.64964886,138.55,138.52,15.6]
[1745139420928,26.46514321,138.55,138.52,15.6]
[1745139424138,82.4,138.54,138.52,15.6]
[1745139424340,82.4,138.54,138.52,23.41549435]
[1745139424534,82.463,138.58,138.53,7.81549435]
[1745139424734,82.463,138.58,138.57,7.81549435]
[1745139425029,0.063,138.58,138.57,23.41549435]
[1745139425643,0.063,138.59,138.57,29.74469435]
[1745139425834,0.063,138.6,138.58,255.19549435]
[1745139426034,1e-08,138.61,138.59,7.81549435]
[1745139426233,0.063,138.66,138.6,7.81549435]
[1745139426445,0.063,138.66,138.64,7.81549435]
[1745139426629,0.063,138.66,138.65,15.6]
[1745139427043,0.063,138.66,138.65,23.41549435]
[1745139427327,0.063,138.66,138.65,27.78545141]
[1745139432263,0.063,138.68,138.65,27.78545141]
[1745139432448,0.063,138.68,138.67,12.18545141]
[1745139433853,32.149,138.69,138.67,12.18545141]
[1745139434175,32.149,138.69,138.65,27.78545141]
[1745139434934,32.149,138.69,138.66,12.18545141]
[1745139436053,32.149,138.69,138.67,12.18545141]
[1745139436880,32.149,138.69,138.68,12.18545141]
[1745139437158,32.149,138.69,138.67,12.18545141]
[1745139437362,32.149,138.69,138.65,15.6]
[1745139437550,32.149,138.69,138.66,12.18545141]
[1745139437746,32.149,138.69,138.65,15.6]
[1745139438049,32.149,138.69,138.66,12.18545141]
[1745139438258,32.149,138.69,138.67,12.18545141]
[1745139438843,32.149,138.69,138.66,12.18545141]
[1745139439852,32.149,138.69,138.67,12.18545141]
[1745139440367,32.149,138.69,138.68,12.18545141]
[1745139441570,6.50547944,138.69,138.68,12.18545141]
[1745139442743,82.463,138.75,138.68,12.18545141]
[1745139442946,82.463,138.75,138.73,12.18545141]
[1745139443161,82.463,138.75,138.74,15.58]
[1745139444845,30.89810027,138.75,138.74,15.58]
[1745139445757,38.10530747,138.75,138.74,15.58]
[1745139447346,19.45565861,138.75,138.74,15.58]
[1745139447547,26.063,138.75,138.74,15.58]
[1745139449463,0.063,138.75,138.74,15.58]
[1745139452280,94.64845141,138.75,138.74,15.58]
[1745139452851,82.463,138.75,138.74,15.58]
[1745139453160,94.64845141,138.75,138.74,15.58]
[1745139453966,82.463,138.75,138.74,15.58]
[1745139456485,0.063,138.75,138.74,27.76545141]
[1745139456779,0.063,138.75,138.74,15.58]
[1745139457153,0.063,138.75,138.74,27.76545141]
[1745139460158,0.063,138.75,138.74,15.58]
[1745139460359,0.063,138.75,138.74,27.76545141]
[1745139461458,0.063,138.75,138.74,274.76545141]
[1745139467090,0.063,138.75,138.74,262.58]
[1745139475094,12.24845141,138.75,138.74,247.0]
[1745139475499,12.24845141,138.75,138.73,15.3]
[1745139475688,12.18545141,138.74,138.73,15.3]
[1745139476596,19.39317809,138.74,138.73,15.3]
[1745139476769,0.063,138.75,138.73,15.3]
[1745139477468,0.063,138.75,138.73,27.48545141]
[1745139477872,0.063,138.75,138.73,15.3]
[1745139480905,12.24845141,138.75,138.73,15.3]
[1745139481703,0.063,138.75,138.73,15.3]
[1745139484316,12.24845141,138.75,138.73,15.3]
[1745139484493,0.063,138.75,138.73,15.3]
[1745139488304,12.24845141,138.75,138.73,15.3]
[1745139489107,0.063,138.75,138.73,15.3]
[1745139489307,7.8546241,138.75,138.73,15.3]
[1745139491518,0.063,138.75,138.73,15.3]
[1745139495443,90.1916241,138.74,138.73,15.3]
[1745139496726,97.39935078,138.74,138.73,15.3]
[1745139498335,142.04899964,138.74,138.73,15.3]
[1745139500334,59.64899964,138.74,138.73,15.3]
[1745139500531,40.99935078,138.74,138.73,15.3]
[1745139501122,40.99935078,138.74,138.64,31.1664964]
[1745139501123,44.64964886,138.7,138.67,15.32]
[1745139501435,7.7916241,138.68,138.67,15.32]
[1745139503137,26.0,138.7,138.67,15.32]
[1745139503338,38.1869905,138.7,138.67,15.32]
[1745139503531,12.1869905,138.7,138.67,15.32]
[1745139504035,38.1869905,138.72,138.67,27.5069905]
[1745139504338,26.0,138.72,138.67,27.5069905]
[1745139504538,82.4,138.73,138.68,12.1869905]
[1745139504717,82.4,138.73,138.69,12.1869905]
[1745139505455,82.4,138.73,138.68,12.1869905]
[1745139508143,94.5869905,138.73,138.68,12.1869905]
[1745139509944,82.4,138.73,138.68,12.1869905]
[1745139510246,94.5869905,138.73,138.68,12.1869905]
[1745139510819,101.7953474,138.73,138.67,15.32]
[1745139511031,94.5869905,138.73,138.68,12.1869905]
[1745139511245,82.4,138.73,138.69,12.1869905]
[1745139511446,82.4,138.73,138.68,12.1869905]
[1745139513342,82.4,138.73,138.69,12.1869905]
[1745139517154,82.4,138.73,138.7,15.22]
[1745139520548,27.6114,138.74,138.7,15.22]
[1745139521058,26.0,138.74,138.71,12.1869905]
[1745139521237,26.0,138.74,138.7,15.22]
[1745139521543,26.0,138.74,138.71,12.1869905]
[1745139522051,26.0,138.74,138.7,15.22]
[1745139522351,26.0,138.74,138.71,12.1869905]
[1745139523043,26.0,138.74,138.7,15.22]
[1745139523044,38.1869905,138.74,138.7,15.22]
[1745139523240,33.79370503,138.74,138.7,15.22]
[1745139525750,41.00162453,138.74,138.7,15.22]
[1745139526452,7.79370503,138.73,138.7,15.22]
[1745139528554,7.79370503,138.71,138.7,15.22]
[1745139528735,91.84930503,138.72,138.7,15.22]
[1745139529660,84.0556,138.72,138.7,15.22]
[1745139529959,91.84930503,138.72,138.7,15.22]
[1745139530555,84.0556,138.72,138.7,15.22]
[1745139531167,82.4,138.72,138.7,15.22]
[1745139532557,116.19370503,138.74,138.7,15.22]
[1745139534629,123.40152017,138.74,138.7,15.22]
[1745139534834,7.79370503,138.73,138.7,15.22]
[1745139535355,116.19370503,138.74,138.7,15.22]
[1745139536665,108.4,138.74,138.7,15.22]
[1745139536969,7.79370503,138.73,138.7,15.22]
[1745139537537,123.40150284,138.74,138.7,15.22]
[1745139538462,82.4,138.73,138.7,15.22]
[1745139539568,26.0,138.74,138.7,15.22]
[1745139540058,26.0,138.74,138.7,23.01370503]
[1745139540358,82.463,138.75,138.71,7.79370503]
[1745139540547,82.463,138.75,138.72,7.79370503]
[1745139541365,82.463,138.75,138.71,7.79370503]
[1745139541946,0.063,138.75,138.72,7.79370503]
[1745139542743,0.063,138.75,138.74,7.79370503]
[1745139546444,0.063,138.75,138.74,26.44335389]
[1745139548462,0.063,138.79,138.75,18.64964886]
[1745139548777,0.063,138.79,138.78,7.79370503]
[1745139548949,0.063,138.79,138.78,254.77370503]
[1745139549651,0.063,138.79,138.78,246.98]
[1745139551872,0.063,138.79,138.78,254.77370503]
[1745139553284,0.063,138.79,138.78,273.42335389]
[1745139553480,0.063,138.8,138.78,273.42335389]
[1745139553784,0.063,138.8,138.79,7.79370503]
[1745139555266,0.063,138.8,138.79,12.15378976]
[1745139558377,0.063,138.8,138.78,246.98]
[1745139558686,0.063,138.8,138.79,12.15378976]
[1745139562574,0.063,138.8,138.78,246.98]
[1745139563087,0.063,138.8,138.79,12.15378976]
[1745139564991,0.063,138.8,138.79,27.25378976]
[1745139566392,0.063,138.83,138.82,38.64964886]
[1745139566598,0.063,138.88,138.87,18.64964886]
[1745139566771,0.063,138.88,138.87,57.79722838]
[1745139567273,1e-08,138.88,138.87,45.64343862]